[Event "Late-Titled-Tuesday-Blitz-December-26-2023"]
[Site "Chess.com"]
[Date "2023.12.26"]
[Round "3"]
[White "tripledes"]
[Black "YouShallNotPass001"]
[Result "0-1"]
[WhiteElo "2218"]
[BlackElo "2512"]
[TimeControl "180+1"]
[EndTime "14:29:07 PST"]
[Termination "YouShallNotPass001 won by checkmate"]

1. e4 {[%clk 0:03:00.9]} 1... e6 {[%clk 0:03:00.9]} 2. d4 {[%clk 0:03:00.8]}
2... d5 {[%clk 0:02:59]} 3. exd5 {[%clk 0:03:01.7]} 3... exd5 {[%clk 0:02:59.3]}
4. Nf3 {[%clk 0:03:02.3]} 4... Nc6 {[%clk 0:02:57.9]} 5. Bb5 {[%clk 0:03:01.1]}
5... Bd6 {[%clk 0:02:56.5]} 6. c4 {[%clk 0:02:59.6]} 6... dxc4 {[%clk
0:02:55.5]} 7. d5 {[%clk 0:02:59.8]} 7... a6 {[%clk 0:02:55.7]} 8. Ba4 {[%clk
0:02:59.3]} 8... b5 {[%clk 0:02:55.5]} 9. dxc6 {[%clk 0:02:59.7]} 9... bxa4
{[%clk 0:02:55.4]} 10. Nbd2 {[%clk 0:02:57.7]} 10... Be6 {[%clk 0:02:39.9]} 11.
Qxa4 {[%clk 0:02:54.7]} 11... Bc5 {[%clk 0:02:33.1]} 12. O-O {[%clk 0:02:47.2]}
12... Qd3 {[%clk 0:02:32.8]} 13. Ne5 {[%clk 0:02:25.3]} 13... Qe2 {[%clk
0:02:25.2]} 14. Nexc4 {[%clk 0:01:46.4]} 14... Nf6 {[%clk 0:02:21.6]} 15. Ne3
{[%clk 0:01:37.9]} 15... Bxe3 {[%clk 0:02:11.1]} 16. fxe3 {[%clk 0:01:38.8]}
16... Qxe3+ {[%clk 0:02:11.3]} 17. Kh1 {[%clk 0:01:39.1]} 17... Ng4 {[%clk
0:01:58.9]} 18. Ne4 {[%clk 0:01:37.5]} 18... Qe2 {[%clk 0:01:51.2]} 19. Bg5
{[%clk 0:01:27.2]} 19... O-O {[%clk 0:01:40.7]} 20. Rae1 {[%clk 0:01:13.8]}
20... Qb5 {[%clk 0:01:23.6]} 21. Qc2 {[%clk 0:00:41.9]} 21... Bc4 {[%clk
0:00:56.5]} 22. Rf4 {[%clk 0:00:27.7]} 22... Bd3 {[%clk 0:00:53.7]} 23. Qc3
{[%clk 0:00:26.8]} 23... Bxe4 {[%clk 0:00:48.8]} 24. Rxg4 {[%clk 0:00:26]} 24...
Bg6 {[%clk 0:00:45.7]} 25. h4 {[%clk 0:00:25]} 25... Rfe8 {[%clk 0:00:44.2]} 26.
Rg1 {[%clk 0:00:22.6]} 26... h6 {[%clk 0:00:39.5]} 27. Bf4 {[%clk 0:00:20.1]}
27... Re6 {[%clk 0:00:38]} 28. Bxc7 {[%clk 0:00:20]} 28... Rxc6 {[%clk
0:00:37.9]} 29. Qg3 {[%clk 0:00:20.2]} 29... Kh7 {[%clk 0:00:35.1]} 30. Be5
{[%clk 0:00:20.3]} 30... Re8 {[%clk 0:00:33]} 31. h5 {[%clk 0:00:20.7]} 31...
Rxe5 {[%clk 0:00:32.6]} 32. hxg6+ {[%clk 0:00:21.1]} 32... fxg6 {[%clk 0:00:32]}
33. Rh4 {[%clk 0:00:21.5]} 33... Rg5 {[%clk 0:00:28.9]} 34. Qf4 {[%clk
0:00:20.6]} 34... Rf5 {[%clk 0:00:25.1]} 35. Qe4 {[%clk 0:00:19.5]} 35... Rcf6
{[%clk 0:00:21.7]} 36. Rd1 {[%clk 0:00:18.9]} 36... Qxb2 {[%clk 0:00:21.2]} 37.
Rd8 {[%clk 0:00:18.1]} 37... Rf1+ {[%clk 0:00:20.8]} 38. Kh2 {[%clk 0:00:18.3]}
38... Qb6 {[%clk 0:00:15.7]} 39. Re8 {[%clk 0:00:13.5]} 39... Qc7+ {[%clk
0:00:15]} 40. Qe5 {[%clk 0:00:07.6]} 40... Qxe5+ {[%clk 0:00:14.9]} 41. Rxe5
{[%clk 0:00:08.5]} 41... R1f5 {[%clk 0:00:13.5]} 42. Rhe4 {[%clk 0:00:07.9]}
42... Rxe5 {[%clk 0:00:13.5]} 43. Rxe5 {[%clk 0:00:08.8]} 43... g5 {[%clk
0:00:14]} 44. Ra5 {[%clk 0:00:09.3]} 44... Rb6 {[%clk 0:00:14.3]} 45. g4 {[%clk
0:00:09.3]} 45... Kg6 {[%clk 0:00:14.7]} 46. Kg3 {[%clk 0:00:09.8]} 46... Kf6
{[%clk 0:00:15.2]} 47. Kf3 {[%clk 0:00:10.3]} 47... g6 {[%clk 0:00:15.8]} 48.
Ke4 {[%clk 0:00:10.7]} 48... h5 {[%clk 0:00:16.2]} 49. Kf3 {[%clk 0:00:11.1]}
49... h4 {[%clk 0:00:15.8]} 50. Kg2 {[%clk 0:00:11.3]} 50... Kg7 {[%clk
0:00:15.3]} 51. Kf2 {[%clk 0:00:08.8]} 51... Kh6 {[%clk 0:00:15.1]} 52. Kf3
{[%clk 0:00:09.1]} 52... Rb4 {[%clk 0:00:14.5]} 53. Rxa6 {[%clk 0:00:08.4]}
53... Rf4+ {[%clk 0:00:15]} 54. Kg2 {[%clk 0:00:08.2]} 54... Rxg4+ {[%clk
0:00:15.6]} 55. Kh3 {[%clk 0:00:09.1]} 55... Rg3+ {[%clk 0:00:15.9]} 56. Kh2
{[%clk 0:00:09.6]} 56... Kh5 {[%clk 0:00:16.1]} 57. a4 {[%clk 0:00:10]} 57... g4
{[%clk 0:00:14.9]} 58. a5 {[%clk 0:00:10.2]} 58... Ra3 {[%clk 0:00:15.5]} 59.
Ra8 {[%clk 0:00:10.3]} 59... g3+ {[%clk 0:00:16.1]} 60. Kh3 {[%clk 0:00:10.3]}
60... Ra2 {[%clk 0:00:16.3]} 61. a6 {[%clk 0:00:08]} 61... Rh2# {[%clk
0:00:14.7]} 0-1

[Event "Late-Titled-Tuesday-Blitz-December-26-2023"]
[Site "Chess.com"]
[Date "2023.12.26"]
[Round "3"]
[White "Hrant_ChessMood"]
[Black "Kildepiotr"]
[Result "0-1"]
[WhiteElo "2869"]
[BlackElo "2676"]
[TimeControl "180+1"]
[EndTime "14:29:09 PST"]
[Termination "Kildepiotr won by checkmate"]

1. Nf3 {[%clk 0:02:53.8]} 1... Nf6 {[%clk 0:02:59.3]} 2. c4 {[%clk 0:02:53.5]}
2... e6 {[%clk 0:02:59.3]} 3. g3 {[%clk 0:02:51.4]} 3... d5 {[%clk 0:02:59.2]}
4. Bg2 {[%clk 0:02:52.2]} 4... Be7 {[%clk 0:02:59.2]} 5. O-O {[%clk 0:02:51.9]}
5... O-O {[%clk 0:02:59.1]} 6. b3 {[%clk 0:02:51.8]} 6... b6 {[%clk 0:02:56.2]}
7. Bb2 {[%clk 0:02:50.7]} 7... Bb7 {[%clk 0:02:56.7]} 8. cxd5 {[%clk 0:02:49.2]}
8... exd5 {[%clk 0:02:56.5]} 9. d4 {[%clk 0:02:48.2]} 9... Nbd7 {[%clk
0:02:56.2]} 10. Nc3 {[%clk 0:02:48.5]} 10... Ne4 {[%clk 0:02:54.4]} 11. Rc1
{[%clk 0:02:41.2]} 11... Ndf6 {[%clk 0:02:53.1]} 12. Ne5 {[%clk 0:02:39.1]}
12... Nxc3 {[%clk 0:02:52]} 13. Bxc3 {[%clk 0:02:38.5]} 13... Ne4 {[%clk
0:02:51]} 14. Bb2 {[%clk 0:02:37.8]} 14... Qd6 {[%clk 0:02:46.9]} 15. Nd3 {[%clk
0:02:28.5]} 15... Rfe8 {[%clk 0:02:38.9]} 16. Qc2 {[%clk 0:02:28.6]} 16... c6
{[%clk 0:02:32.7]} 17. a4 {[%clk 0:02:19.5]} 17... Bg5 {[%clk 0:02:25.3]} 18.
Ra1 {[%clk 0:02:18]} 18... a5 {[%clk 0:02:17.9]} 19. Bc1 {[%clk 0:02:12.8]}
19... Bxc1 {[%clk 0:02:15.1]} 20. Rfxc1 {[%clk 0:02:12.6]} 20... Rac8 {[%clk
0:02:12.7]} 21. Qb2 {[%clk 0:01:49.8]} 21... Ba6 {[%clk 0:02:06.7]} 22. b4
{[%clk 0:01:22.6]} 22... axb4 {[%clk 0:01:45.8]} 23. Qxb4 {[%clk 0:01:02.8]}
23... Qxb4 {[%clk 0:01:33.4]} 24. Nxb4 {[%clk 0:01:02.7]} 24... Bc4 {[%clk
0:01:27.2]} 25. e3 {[%clk 0:00:56.4]} 25... c5 {[%clk 0:01:25.2]} 26. dxc5
{[%clk 0:00:53.6]} 26... bxc5 {[%clk 0:01:26.1]} 27. Bxe4 {[%clk 0:00:45.3]}
27... Rxe4 {[%clk 0:01:05.7]} 28. Na2 {[%clk 0:00:44.8]} 28... Ba6 {[%clk
0:00:41.6]} 29. Nc3 {[%clk 0:00:37.7]} 29... Re5 {[%clk 0:00:41.9]} 30. Rd1
{[%clk 0:00:34.5]} 30... Rd8 {[%clk 0:00:34.1]} 31. Nb5 {[%clk 0:00:27.3]} 31...
Kf8 {[%clk 0:00:31.9]} 32. Rac1 {[%clk 0:00:27]} 32... Bxb5 {[%clk 0:00:28]} 33.
axb5 {[%clk 0:00:26.8]} 33... d4 {[%clk 0:00:28.5]} 34. b6 {[%clk 0:00:20.1]}
34... Rb8 {[%clk 0:00:17.7]} 35. exd4 {[%clk 0:00:08.6]} 35... cxd4 {[%clk
0:00:18.6]} 36. Rc7 {[%clk 0:00:09.3]} 36... Rxb6 {[%clk 0:00:16.6]} 37. Rxd4
{[%clk 0:00:09.3]} 37... Re8 {[%clk 0:00:16.4]} 38. Rdd7 {[%clk 0:00:06.9]}
38... Rf6 {[%clk 0:00:16.6]} 39. Kg2 {[%clk 0:00:07.3]} 39... h5 {[%clk
0:00:15.8]} 40. f4 {[%clk 0:00:07.5]} 40... g6 {[%clk 0:00:16.3]} 41. Kh3 {[%clk
0:00:08]} 41... Kg7 {[%clk 0:00:16.3]} 42. Kh4 {[%clk 0:00:08.7]} 42... Rf5
{[%clk 0:00:15.8]} 43. Ra7 {[%clk 0:00:06]} 43... Re2 {[%clk 0:00:15]} 44. Kh3
{[%clk 0:00:05.6]} 44... Re3 {[%clk 0:00:13.3]} 45. Rd8 {[%clk 0:00:05]} 45...
Rxf4 {[%clk 0:00:12.1]} 46. Ra2 {[%clk 0:00:04.3]} 46... Rf5 {[%clk 0:00:11.6]}
47. Rd4 {[%clk 0:00:04]} 47... g5 {[%clk 0:00:11.5]} 48. Rad2 {[%clk 0:00:03.8]}
48... Kg6 {[%clk 0:00:10.9]} 49. Rd8 {[%clk 0:00:03.4]} 49... h4 {[%clk
0:00:09.6]} 50. Kg4 {[%clk 0:00:02]} 50... Re4+ {[%clk 0:00:09.2]} 51. Kh3
{[%clk 0:00:02.2]} 51... g4+ {[%clk 0:00:09]} 52. Kg2 {[%clk 0:00:01.9]} 52...
h3+ {[%clk 0:00:09.6]} 53. Kg1 {[%clk 0:00:01.4]} 53... Re1# {[%clk 0:00:09.8]}
0-1

[Event "Late-Titled-Tuesday-Blitz-December-26-2023"]
[Site "Chess.com"]
[Date "2023.12.26"]
[Round "3"]
[White "ATM622"]
[Black "colegiodemadrid"]
[Result "1-0"]
[WhiteElo "2416"]
[BlackElo "2553"]
[TimeControl "180+1"]
[EndTime "14:29:11 PST"]
[Termination "ATM622 won by checkmate"]

1. d4 {[%clk 0:03:00.9]} 1... Nf6 {[%clk 0:02:58.8]} 2. c4 {[%clk 0:03:01.1]}
2... g6 {[%clk 0:02:59.2]} 3. g3 {[%clk 0:02:59.9]} 3... Bg7 {[%clk 0:02:58.8]}
4. Bg2 {[%clk 0:03:00.4]} 4... c6 {[%clk 0:02:59.5]} 5. Nf3 {[%clk 0:03:00.8]}
5... d5 {[%clk 0:03:00.2]} 6. O-O {[%clk 0:03:01.3]} 6... O-O {[%clk 0:03:00.4]}
7. Nc3 {[%clk 0:03:00.1]} 7... dxc4 {[%clk 0:02:55.3]} 8. Ne5 {[%clk 0:02:59.3]}
8... Be6 {[%clk 0:02:51.1]} 9. e4 {[%clk 0:02:56.8]} 9... Nfd7 {[%clk
0:02:44.8]} 10. Nf3 {[%clk 0:02:41.5]} 10... Nb6 {[%clk 0:02:44.1]} 11. Be3
{[%clk 0:02:35.3]} 11... N8d7 {[%clk 0:02:34.5]} 12. Ng5 {[%clk 0:02:32.9]}
12... Nf6 {[%clk 0:02:28.2]} 13. Nxe6 {[%clk 0:02:31.8]} 13... fxe6 {[%clk
0:02:25.6]} 14. Bh3 {[%clk 0:02:28.9]} 14... Qd7 {[%clk 0:02:14.1]} 15. d5
{[%clk 0:02:26.9]} 15... cxd5 {[%clk 0:01:43.4]} 16. Bxb6 {[%clk 0:02:25.9]}
16... axb6 {[%clk 0:01:42.3]} 17. exd5 {[%clk 0:02:25.6]} 17... Nxd5 {[%clk
0:01:37.7]} 18. Nxd5 {[%clk 0:02:11.7]} 18... Qxd5 {[%clk 0:01:33.7]} 19. Qe2
{[%clk 0:02:07.5]} 19... Kh8 {[%clk 0:01:30.5]} 20. Bxe6 {[%clk 0:02:05.6]}
20... Qd3 {[%clk 0:01:29.1]} 21. Bxc4 {[%clk 0:02:02.2]} 21... Qxe2 {[%clk
0:01:29]} 22. Bxe2 {[%clk 0:02:01.9]} 22... Bxb2 {[%clk 0:01:29.8]} 23. Rab1
{[%clk 0:02:01]} 23... Bd4 {[%clk 0:01:24.5]} 24. Bc4 {[%clk 0:02:01]} 24... e5
{[%clk 0:01:19.5]} 25. Bd5 {[%clk 0:01:58.6]} 25... Rf6 {[%clk 0:01:15.9]} 26.
Kg2 {[%clk 0:01:52.4]} 26... Ra5 {[%clk 0:01:01.7]} 27. Bb3 {[%clk 0:01:49.9]}
27... Rc5 {[%clk 0:00:59.4]} 28. f3 {[%clk 0:01:45.2]} 28... Kg7 {[%clk
0:00:58.8]} 29. Rbc1 {[%clk 0:01:38.1]} 29... h5 {[%clk 0:00:57.7]} 30. h4
{[%clk 0:01:32.6]} 30... Rfc6 {[%clk 0:00:54.1]} 31. Rce1 {[%clk 0:01:25.8]}
31... Rc3 {[%clk 0:00:50.7]} 32. f4 {[%clk 0:01:21.3]} 32... R6c5 {[%clk
0:00:37.4]} 33. Re4 {[%clk 0:01:05.9]} 33... Re3 {[%clk 0:00:23.6]} 34. Rxe3
{[%clk 0:01:02.8]} 34... Bxe3 {[%clk 0:00:24.5]} 35. fxe5 {[%clk 0:01:03.4]}
35... Rxe5 {[%clk 0:00:24.8]} 36. Rf7+ {[%clk 0:01:03.3]} 36... Kh8 {[%clk
0:00:17.1]} 37. Rxb7 {[%clk 0:01:02.7]} 37... Bc5 {[%clk 0:00:16.8]} 38. Kf3
{[%clk 0:00:56]} 38... g5 {[%clk 0:00:16.5]} 39. hxg5 {[%clk 0:00:49.9]} 39...
Rxg5 {[%clk 0:00:17.4]} 40. Kf4 {[%clk 0:00:44.8]} 40... Rg4+ {[%clk 0:00:16.1]}
41. Kf3 {[%clk 0:00:39.1]} 41... Rg5 {[%clk 0:00:16.5]} 42. Rd7 {[%clk
0:00:27.9]} 42... Rg7 {[%clk 0:00:11.1]} 43. Rd8+ {[%clk 0:00:26]} 43... Kh7
{[%clk 0:00:10.2]} 44. Kf4 {[%clk 0:00:20.5]} 44... Kh6 {[%clk 0:00:09.1]} 45.
Kf5 {[%clk 0:00:06.9]} 45... Rg5+ {[%clk 0:00:09.2]} 46. Kf6 {[%clk 0:00:06]}
46... Rg6+ {[%clk 0:00:08.6]} 47. Kf5 {[%clk 0:00:06.2]} 47... Rg5+ {[%clk
0:00:06.7]} 48. Kf4 {[%clk 0:00:06.6]} 48... Rg6 {[%clk 0:00:04.6]} 49. Kf3
{[%clk 0:00:04.5]} 49... Rf6+ {[%clk 0:00:04.8]} 50. Ke4 {[%clk 0:00:04.5]}
50... Kg5 {[%clk 0:00:03.7]} 51. Rg8+ {[%clk 0:00:04.3]} 51... Kh6 {[%clk
0:00:04.1]} 52. Ke5 {[%clk 0:00:03.8]} 52... Rg6 {[%clk 0:00:02.4]} 53. Rh8+
{[%clk 0:00:03.9]} 53... Kg5 {[%clk 0:00:01.6]} 54. Bd1 {[%clk 0:00:04]} 54...
h4 {[%clk 0:00:01.7]} 55. Rh5# {[%clk 0:00:04]} 1-0

[Event "Late-Titled-Tuesday-Blitz-December-26-2023"]
[Site "Chess.com"]
[Date "2023.12.26"]
[Round "3"]
[White "Onthequiet"]
[Black "BlackGod93"]
[Result "1/2-1/2"]
[WhiteElo "2426"]
[BlackElo "2584"]
[TimeControl "180+1"]
[EndTime "14:29:12 PST"]
[Termination "Game drawn by repetition"]

1. d4 {[%clk 0:02:52.5]} 1... Nf6 {[%clk 0:02:59.1]} 2. Nf3 {[%clk 0:02:52.4]}
2... e6 {[%clk 0:02:58.5]} 3. a3 {[%clk 0:02:51.3]} 3... c5 {[%clk 0:02:58.6]}
4. dxc5 {[%clk 0:02:49.1]} 4... Bxc5 {[%clk 0:02:58.8]} 5. b4 {[%clk 0:02:49.3]}
5... Be7 {[%clk 0:02:59.5]} 6. Bb2 {[%clk 0:02:49.2]} 6... O-O {[%clk
0:02:59.7]} 7. e3 {[%clk 0:02:49]} 7... d5 {[%clk 0:03:00.2]} 8. Nbd2 {[%clk
0:02:47.8]} 8... a5 {[%clk 0:03:00.9]} 9. b5 {[%clk 0:02:43.4]} 9... a4 {[%clk
0:03:00.7]} 10. c4 {[%clk 0:02:42.5]} 10... Nbd7 {[%clk 0:03:01.1]} 11. Be2
{[%clk 0:02:36.9]} 11... b6 {[%clk 0:03:00.7]} 12. Nd4 {[%clk 0:02:31.7]} 12...
Bb7 {[%clk 0:03:00.5]} 13. Bf3 {[%clk 0:02:26.7]} 13... Ne5 {[%clk 0:02:59.3]}
14. cxd5 {[%clk 0:02:22.1]} 14... Nxf3+ {[%clk 0:02:58.9]} 15. gxf3 {[%clk
0:02:13.3]} 15... Bxd5 {[%clk 0:02:58.3]} 16. e4 {[%clk 0:02:08.2]} 16... Bb7
{[%clk 0:02:56.7]} 17. Rg1 {[%clk 0:02:03.8]} 17... Qd6 {[%clk 0:02:48.9]} 18.
Nc6 {[%clk 0:01:42.3]} 18... e5 {[%clk 0:01:43.9]} 19. Nc4 {[%clk 0:01:29.6]}
19... Qe6 {[%clk 0:01:37.3]} 20. Nxe7+ {[%clk 0:01:28]} 20... Qxe7 {[%clk
0:01:36.5]} 21. Qd6 {[%clk 0:01:27.6]} 21... Rfe8 {[%clk 0:01:24.5]} 22. Qxe7
{[%clk 0:01:24.7]} 22... Rxe7 {[%clk 0:01:25.4]} 23. Bxe5 {[%clk 0:01:22.6]}
23... Ne8 {[%clk 0:01:25.3]} 24. Bb2 {[%clk 0:01:10.4]} 24... f5 {[%clk
0:01:25.2]} 25. Nxb6 {[%clk 0:01:04.5]} 25... Ra5 {[%clk 0:01:25.5]} 26. Bd4
{[%clk 0:00:44.8]} 26... fxe4 {[%clk 0:01:24.1]} 27. f4 {[%clk 0:00:43.9]} 27...
Rxb5 {[%clk 0:01:24.4]} 28. Nxa4 {[%clk 0:00:31.6]} 28... Rd7 {[%clk 0:01:18.7]}
29. Be3 {[%clk 0:00:29.9]} 29... Ra5 {[%clk 0:01:18.3]} 30. Nb6 {[%clk
0:00:26.6]} 30... Rd3 {[%clk 0:01:17.5]} 31. Nc4 {[%clk 0:00:26.2]} 31... Ra4
{[%clk 0:01:15]} 32. Nb2 {[%clk 0:00:25.5]} 32... Raxa3 {[%clk 0:01:13.3]} 33.
Nxd3 {[%clk 0:00:21.5]} 33... Rxa1+ {[%clk 0:01:13.4]} 34. Nc1 {[%clk 0:00:22]}
34... Nf6 {[%clk 0:01:09.5]} 35. Kd2 {[%clk 0:00:21.5]} 35... Ra8 {[%clk
0:01:04.5]} 36. Nb3 {[%clk 0:00:18.9]} 36... Rd8+ {[%clk 0:01:04.2]} 37. Nd4
{[%clk 0:00:18.6]} 37... Nd5 {[%clk 0:01:04.2]} 38. Kc1 {[%clk 0:00:16.7]} 38...
Nxf4 {[%clk 0:01:02.8]} 39. Kb2 {[%clk 0:00:13.1]} 39... Nd3+ {[%clk 0:01:02.8]}
40. Kc3 {[%clk 0:00:12.2]} 40... Rc8+ {[%clk 0:01:02.4]} 41. Kd2 {[%clk
0:00:11]} 41... Bd5 {[%clk 0:01:03.3]} 42. Nf5 {[%clk 0:00:10.6]} 42... Rc7
{[%clk 0:01:02.7]} 43. Bd4 {[%clk 0:00:09.3]} 43... g6 {[%clk 0:01:03.1]} 44.
Nh6+ {[%clk 0:00:08.6]} 44... Kf8 {[%clk 0:01:03.8]} 45. Rb1 {[%clk 0:00:08.2]}
45... Ke7 {[%clk 0:01:00.2]} 46. Ke3 {[%clk 0:00:08.7]} 46... Nc5 {[%clk
0:00:45.8]} 47. Rb8 {[%clk 0:00:09.2]} 47... Ne6 {[%clk 0:00:44.8]} 48. Ng4
{[%clk 0:00:08.4]} 48... h5 {[%clk 0:00:40]} 49. Ne5 {[%clk 0:00:08.2]} 49...
Nf8 {[%clk 0:00:36.8]} 50. Rb5 {[%clk 0:00:04]} 50... Ke6 {[%clk 0:00:34.4]} 51.
Rc5 {[%clk 0:00:02.5]} 51... Rxc5 {[%clk 0:00:34.2]} 52. Bxc5 {[%clk 0:00:02.3]}
52... Kxe5 {[%clk 0:00:32]} 53. Bxf8 {[%clk 0:00:02.1]} 53... Be6 {[%clk
0:00:32.9]} 54. Bh6 {[%clk 0:00:02.4]} 54... Kf5 {[%clk 0:00:33.5]} 55. h4
{[%clk 0:00:02.3]} 55... Kg4 {[%clk 0:00:33.1]} 56. Bg5 {[%clk 0:00:03]} 56...
Bf5 {[%clk 0:00:33.6]} 57. Be7 {[%clk 0:00:03.5]} 57... Kh3 {[%clk 0:00:32.4]}
58. Bg5 {[%clk 0:00:04.1]} 58... Kg2 {[%clk 0:00:32.7]} 59. Bf6 {[%clk
0:00:04.6]} 59... Kf1 {[%clk 0:00:33.6]} 60. Bg5 {[%clk 0:00:04.8]} 60... Kg2
{[%clk 0:00:34.5]} 61. Bf6 {[%clk 0:00:05.5]} 61... Kh3 {[%clk 0:00:35.4]} 62.
Bg5 {[%clk 0:00:06.4]} 62... Kg2 {[%clk 0:00:35.7]} 1/2-1/2

[Event "Late-Titled-Tuesday-Blitz-December-26-2023"]
[Site "Chess.com"]
[Date "2023.12.26"]
[Round "3"]
[White "KVAIDAN"]
[Black "Predator0608"]
[Result "1-0"]
[WhiteElo "2391"]
[BlackElo "2535"]
[TimeControl "180+1"]
[EndTime "14:29:12 PST"]
[Termination "KVAIDAN won by resignation"]

1. f4 {[%clk 0:02:59]} 1... Nf6 {[%clk 0:02:57.5]} 2. Nf3 {[%clk 0:02:59]} 2...
g6 {[%clk 0:02:57.5]} 3. d3 {[%clk 0:02:58.6]} 3... d5 {[%clk 0:02:57.1]} 4. e3
{[%clk 0:02:59]} 4... Bg7 {[%clk 0:02:57.3]} 5. Be2 {[%clk 0:02:59.6]} 5... O-O
{[%clk 0:02:57.4]} 6. O-O {[%clk 0:03:00.2]} 6... c5 {[%clk 0:02:57.5]} 7. Kh1
{[%clk 0:03:00.6]} 7... Nc6 {[%clk 0:02:58.2]} 8. a4 {[%clk 0:03:01.1]} 8... Qc7
{[%clk 0:02:57.6]} 9. Nc3 {[%clk 0:03:00.6]} 9... e5 {[%clk 0:02:58.1]} 10. Nb5
{[%clk 0:03:00.5]} 10... Qe7 {[%clk 0:02:57.7]} 11. fxe5 {[%clk 0:03:01.1]}
11... Nxe5 {[%clk 0:02:58.6]} 12. Nxe5 {[%clk 0:03:01.6]} 12... Qxe5 {[%clk
0:02:59.5]} 13. e4 {[%clk 0:03:02.2]} 13... dxe4 {[%clk 0:02:49.2]} 14. Bf4
{[%clk 0:03:01.9]} 14... Qxb2 {[%clk 0:02:47.6]} 15. Rb1 {[%clk 0:03:00.4]}
15... Qa2 {[%clk 0:02:46]} 16. Be5 {[%clk 0:03:00.8]} 16... exd3 {[%clk
0:02:40]} 17. Bxd3 {[%clk 0:03:00.3]} 17... Ng4 {[%clk 0:02:27.5]} 18. Bxg7
{[%clk 0:02:20.6]} 18... Kxg7 {[%clk 0:02:28.4]} 19. Nd6 {[%clk 0:02:17.5]}
19... Ne3 {[%clk 0:02:00.4]} 20. Qe1 {[%clk 0:02:12.9]} 20... Nxf1 {[%clk
0:01:56.3]} 21. Qe5+ {[%clk 0:02:13]} 21... f6 {[%clk 0:00:52.2]} 22. Qe7+
{[%clk 0:02:12.4]} 22... Rf7 {[%clk 0:00:52.2]} 23. Ne8+ {[%clk 0:02:01.8]}
23... Kg8 {[%clk 0:00:18]} 24. Nxf6+ {[%clk 0:01:58.9]} 24... Rxf6 {[%clk
0:00:18.4]} 25. Qxf6 {[%clk 0:01:59.1]} 25... Ng3+ {[%clk 0:00:17.6]} 26. hxg3
{[%clk 0:01:54]} 26... Qxb1+ {[%clk 0:00:18.5]} 27. Kh2 {[%clk 0:01:54.6]} 27...
Qa2 {[%clk 0:00:18.8]} 28. c4 {[%clk 0:01:47.7]} 28... Qxa4 {[%clk 0:00:11.1]}
29. Qd8+ {[%clk 0:01:27.2]} 29... Kf7 {[%clk 0:00:10.5]} 30. Be4 {[%clk
0:01:24.8]} 30... Qd7 {[%clk 0:00:10.6]} 31. Bd5+ {[%clk 0:01:24.8]} 31... Kg7
{[%clk 0:00:11.1]} 32. Qg8+ {[%clk 0:01:23.8]} 32... Kh6 {[%clk 0:00:08.4]} 33.
Qf8+ {[%clk 0:01:24]} 33... Qg7 {[%clk 0:00:08.5]} 34. Qf4+ {[%clk 0:01:24.1]}
34... g5 {[%clk 0:00:09.1]} 35. Qd6+ {[%clk 0:01:21.6]} 35... Kh5 {[%clk
0:00:09.6]} 36. Qd8 {[%clk 0:01:08.3]} 36... Rb8 {[%clk 0:00:06.2]} 37. g4+
{[%clk 0:00:58]} 37... Kh6 {[%clk 0:00:06.1]} 38. Qd6+ {[%clk 0:00:56.2]} 38...
Qg6 {[%clk 0:00:06.5]} 39. Qxb8 {[%clk 0:00:56.4]} 39... Bxg4 {[%clk 0:00:07.2]}
40. Kg3 {[%clk 0:00:50.8]} 40... Bf5 {[%clk 0:00:05.6]} 41. Qxb7 {[%clk
0:00:49.9]} 41... Qd6+ {[%clk 0:00:05.1]} 42. Kf2 {[%clk 0:00:48.4]} 42... Qf4+
{[%clk 0:00:06]} 43. Bf3 {[%clk 0:00:46.8]} 43... Qd2+ {[%clk 0:00:06.5]} 44.
Kg1 {[%clk 0:00:45.3]} 44... Qe1+ {[%clk 0:00:06.8]} 45. Kh2 {[%clk 0:00:45]}
45... Qh4+ {[%clk 0:00:07.7]} 46. Kg1 {[%clk 0:00:45.2]} 46... Qe1+ {[%clk
0:00:08.6]} 47. Kh2 {[%clk 0:00:45.5]} 47... Qe5+ {[%clk 0:00:08.5]} 48. g3
{[%clk 0:00:41.1]} 48... g4 {[%clk 0:00:09.4]} 49. Bg2 {[%clk 0:00:38.8]} 49...
Kg5 {[%clk 0:00:08.5]} 50. Qxa7 {[%clk 0:00:37.1]} 50... h5 {[%clk 0:00:08.7]}
51. Qa8 {[%clk 0:00:34.5]} 51... h4 {[%clk 0:00:08.4]} 52. Qg8+ {[%clk
0:00:34.2]} 52... Bg6 {[%clk 0:00:07.3]} 53. Qd8+ {[%clk 0:00:34.3]} 53... Qf6
{[%clk 0:00:06.2]} 54. gxh4+ {[%clk 0:00:34.4]} 54... Kf5 {[%clk 0:00:06.7]} 55.
Be4+ {[%clk 0:00:33.3]} 55... Ke5 {[%clk 0:00:07.3]} 56. Qd5+ {[%clk 0:00:33.4]}
56... Kf4 {[%clk 0:00:07.6]} 57. Bxg6 {[%clk 0:00:26.4]} 57... g3+ {[%clk
0:00:08]} 58. Kh3 {[%clk 0:00:22.9]} 58... Qxg6 {[%clk 0:00:08.7]} 59. Qd2+
{[%clk 0:00:22.7]} 59... Kf3 {[%clk 0:00:08.5]} 60. Qd3+ {[%clk 0:00:20.9]}
60... Kf2 {[%clk 0:00:08.8]} 61. Qxg6 {[%clk 0:00:21]} 1-0